fUST/lending_fUST_20250831
["ID","MTS","AMOUNT","RATE_DAILY","PERIOD"]
[382358754,1756586640529,-4815.82669474,0.0005099,120]
[382358755,1756586640559,-1000.0,0.00051,120]
[382358757,1756586640589,-250000.0,0.00051,120]
[382358758,1756586640616,-3000.0,0.00051,85]
[382358759,1756586640644,-3000.0,0.0005101,85]
[382358761,1756586640673,-3000.0,0.0005102,85]
[382358762,1756586640702,-3000.0,0.0005103,85]
[382358764,1756586640730,-3000.0,0.0005104,85]
[382358765,1756586640759,-3000.0,0.0005105,85]
[382358766,1756586640788,-3000.0,0.0005106,85]
[382358768,1756586640817,-3000.0,0.0005107,85]
[382358769,1756586640845,-3168.051884,0.0005108,85]
[382358771,1756586640876,-9464.94993564,0.00051174,58]
[382358772,1756586640905,-834.18148,0.000512,120]
[382358774,1756586640935,-370.74732,0.000512,120]
[382358775,1756586640962,-316.89104,0.000515,120]
[382358776,1756586640989,-1000.0,0.00051999,120]
[382358778,1756586641020,-1000.0,0.00052,120]
[382358779,1756586641047,-300.0,0.00052,120]
[382358781,1756586641074,-1000.0,0.00052,120]
[382358782,1756586641102,-579.0,0.00052,120]
[382358783,1756586641130,-3607.24,0.00052054,120]
[382358794,1756586641842,500.0,0.00050735,30]
[382358845,1756586645797,8710.85296973,0.00018,2]
[382358846,1756586645821,10000.01,0.00018,2]
[382358848,1756586645844,10000.01,0.00018,2]
[382358849,1756586645867,10000.01,0.00018,2]
[382358850,1756586645889,10000.01,0.00018,2]
[382358852,1756586645911,10000.01,0.00018,2]
[382358853,1756586645939,10000.01,0.00018,2]
[382358854,1756586645960,10000.01,0.00018,2]
[382358856,1756586645982,10000.01,0.00018,2]
[382358857,1756586646006,10000.01,0.00018,2]
[382358858,1756586646036,26182.54423402,0.00018,2]
[382358864,1756586646396,-175.23044524,0.00018,2]
[382358882,1756586647648,-500.0,0.00052053,120]
[382358884,1756586647677,-500.0,0.00052053,120]
[382358885,1756586647706,-500.0,0.00052053,120]
[382358887,1756586647734,-500.0,0.00052053,120]
[382358888,1756586647763,-500.0,0.00052053,120]
[382358889,1756586647795,-500.0,0.00052053,120]
[382358891,1756586647824,-500.0,0.00052053,120]
[382358892,1756586647853,-500.0,0.00052053,120]
[382358894,1756586647882,-500.0,0.00052053,120]
[382358895,1756586647911,-500.0,0.00052053,120]
[382358896,1756586647940,-500.0,0.00052053,120]
[382358898,1756586647969,-500.0,0.00052053,120]
[382358900,1756586648040,500.0,0.00052053,120]
[382358902,1756586648092,468.91513229,0.00052053,120]
[382358916,1756586649047,500.0,0.00052053,120]
[382358919,1756586649233,500.0,0.00052053,120]
[382358921,1756586649266,-216.20289512,0.00018,2]
[382358928,1756586649697,500.0,0.00052055,30]
[382358930,1756586649776,500.0,0.00052053,120]
[382358932,1756586649861,151.0,0.00052055,30]
[382358933,1756586649901,250.0,0.00052055,30]
[382358935,1756586649960,151.0,0.00052055,30]
[382358938,1756586650085,500.0,0.00052053,120]
[382358939,1756586650130,500.0,0.00052053,120]
[382358941,1756586650190,500.0,0.00052053,120]
[382358943,1756586650232,500.0,0.00052055,30]
[382358944,1756586650264,151.0,0.00052055,30]
[382358946,1756586650299,500.0,0.00052055,30]
[382358947,1756586650334,250.0,0.00052055,30]
[382358949,1756586650368,500.0,0.00052053,120]
[382358950,1756586650398,151.0,0.00052055,30]
[382358951,1756586650548,500.0,0.00052053,120]
[382358952,1756586650610,500.0,0.00052053,120]
[382358954,1756586650748,500.0,0.00052055,30]
[382358955,1756586650781,151.0,0.00052055,30]
[382358957,1756586650822,500.0,0.00052055,30]
[382358958,1756586650857,250.0,0.00052055,30]
[382358960,1756586650912,500.0,0.00052053,120]
[382358963,1756586651071,151.0,0.00052055,30]
[382358965,1756586651112,500.0,0.00052053,120]
[382358967,1756586651185,1888.0,0.00052055,30]
[382358969,1756586651261,500.0,0.00052053,120]
[382358972,1756586651406,500.0,0.00052055,30]
[382358974,1756586651458,500.0,0.00052053,120]
[382358977,1756586651622,500.0,0.00052053,120]
[382358980,1756586651798,457.20725818,0.00052053,120]
[382358982,1756586651831,1957.856,0.00052055,30]
[382358984,1756586651934,152.14158933,0.00051755,30]
[382358988,1756586652097,500.0,0.00052055,30]
[382358990,1756586652210,250.0,0.00052055,30]
[382358992,1756586652252,-201.92181223,0.00018,2]
[382358998,1756586652616,448.54154365,0.00052055,30]
[382359002,1756586652792,151.0,0.00052055,30]
[382359007,1756586653039,250.0,0.00052055,30]
[382359014,1756586653458,151.0,0.00052055,30]
[382359016,1756586653537,151.0,0.00052055,30]
[382359024,1756586654052,250.0,0.00052055,30]
[382359026,1756586654095,278.0,0.00038059,30]
[382359027,1756586654152,500.0,0.00051755,30]
[382359029,1756586654196,500.0,0.00052053,120]
[382359031,1756586654254,278.0,0.00039962,90]
[382359032,1756586654285,500.0,0.00051755,30]
[382359034,1756586654321,16000.0,0.00052055,30]
[382359036,1756586654386,278.0,0.00037742,30]
[382359037,1756586654422,-288.41585567,0.00018,2]
[382359040,1756586654551,250.0,0.00052055,30]
[382359043,1756586654708,278.0,0.00035521,30]
[382359049,1756586655038,280.0,0.00033301,30]
[382359050,1756586655074,16592.0,0.00052055,30]
[382359052,1756586655156,250.0,0.00052055,30]
[382359060,1756586655672,1250.522448,0.00052055,30]
[382359063,1756586655815,500.0,0.00051755,30]
[382359067,1756586656029,559.22931719,0.00051755,30]
[382359081,1756586656959,-256.27817087,0.00018,2]
[382359124,1756586660234,-225.21412797,0.00018,2]
[382359149,1756586661986,-226.81347349,0.00018,2]
[382359186,1756586664662,-187.49038957,0.00018,2]
[382359233,1756586668478,-224.66406432,0.00018,2]
[382359281,1756586671968,-151.0,0.00018,2]
[382359312,1756586674538,-164.22852076,0.00018,2]
[382359347,1756586677128,-5000.0,0.00030845,60]
[382359349,1756586677159,-2097.28235318,0.00030855,60]
[382359350,1756586677193,-394.22,0.00036368,60]
[382359352,1756586677223,-417.15472785,0.0004,120]
[382359353,1756586677255,-394.22,0.00050735,120]
[382359354,1756586677286,-177.80262302,0.00052053,120]
[382359356,1756586677314,-151.0,0.00052053,120]
[382359357,1756586677342,-151.0,0.00052053,120]
[382359359,1756586677369,-242.89014423,0.00052053,120]
[382359360,1756586677397,-151.0,0.00052053,120]
[382359361,1756586677425,-151.0,0.00052053,120]
[382359363,1756586677452,-500.0,0.00052053,120]
[382359364,1756586677481,-500.0,0.00052053,120]
[382359365,1756586677508,-500.0,0.00052053,120]
[382359367,1756586677536,-500.0,0.00052053,120]
[382359368,1756586677565,-500.0,0.00052053,120]
[382359370,1756586677595,-500.0,0.00052053,120]
[382359371,1756586677623,-500.0,0.00052053,120]
[382359372,1756586677651,-500.0,0.00052053,120]
[382359373,1756586677678,-500.0,0.00052053,120]
[382359374,1756586677705,-244.74477474,0.00052053,120]
[382359375,1756586677732,-151.0,0.00052053,120]
[382359376,1756586677758,-151.0,0.00052053,120]
[382359377,1756586677784,-259.14167299,0.00052053,120]
[382359378,1756586677810,-242.03155717,0.00052053,120]
[382359379,1756586677838,-399.01945502,0.00052055,120]
[382359380,1756586677865,-168.03,0.00052195,120]
[382359382,1756586677892,-409.0,0.00052195,120]
[382359383,1756586677920,-154.0,0.000525,120]
[382359385,1756586677952,-9464.94993564,0.00052664,61]
[382359386,1756586677980,-1000.0,0.00053,120]
[382359387,1756586678009,-2000.0,0.00053,120]
[382359389,1756586678037,-3607.24,0.00053972,120]
[382359390,1756586678064,-100494.51821997,0.00053989,120]
[382359392,1756586678091,-1000.0,0.00054,120]
[382359393,1756586678118,-680.46469429,0.00054,120]
[382359394,1756586678146,-300.0,0.00054,120]
[382359396,1756586678173,-1000.0,0.00054,120]
[382359397,1756586678204,-9464.94993564,0.00054153,65]
[382359399,1756586678231,-480.0,0.00054794,120]
[382359400,1756586678258,-480.0,0.00054794,120]
[382359401,1756586678285,-480.0,0.00054794,120]
[382359403,1756586678312,-480.0,0.00054794,120]
[382359404,1756586678339,-480.0,0.00054794,120]
[382359406,1756586678366,-480.0,0.00054794,120]
[382359407,1756586678394,-480.0,0.00054794,120]
[382359408,1756586678421,-480.0,0.00054794,120]
[382359410,1756586678448,-480.0,0.00054794,120]
[382359411,1756586678476,-480.0,0.00054794,120]
[382359413,1756586678502,-480.0,0.00054794,120]
[382359414,1756586678530,-480.0,0.00054794,120]
[382359415,1756586678557,-480.0,0.00054794,120]
[382359417,1756586678584,-480.0,0.00054794,120]
[382359418,1756586678613,-480.0,0.00054794,120]
[382359419,1756586678640,-480.0,0.00054794,120]
[382359421,1756586678668,-480.0,0.00054794,120]
[382359422,1756586678696,-480.0,0.00054794,120]
[382359424,1756586678724,-480.0,0.00054794,120]
[382359425,1756586678751,-480.0,0.00054794,120]
[382359426,1756586678778,-480.0,0.00054794,120]
[382359428,1756586678804,-480.0,0.00054794,120]
[382359429,1756586678831,-480.0,0.00054794,120]
[382359431,1756586678857,-323.04806382,0.00054794,120]
[382359434,1756586679040,500.0,0.00052053,120]
[382359436,1756586679112,500.0,0.00052053,120]
[382359439,1756586679230,-212.46557286,0.00018,2]
[382359442,1756586679368,500.0,0.00052053,120]
[382359445,1756586679523,226.19622651,0.00052053,120]
[382359452,1756586679976,5136.36366895,0.00054794,120]
[382359470,1756586681241,151.0,0.00052053,120]
[382359474,1756586681415,151.0,0.00052053,120]
[382359478,1756586681634,257.03528636,0.00052053,120]
[382359491,1756586682745,151.0,0.00052053,120]
[382359492,1756586682813,5000.0,0.00054795,50]
[382359495,1756586682912,151.0,0.00052053,120]
[382359994,1756586720653,10000.01,0.00017,2]
[382359995,1756586720676,10000.01,0.00017,2]
[382359996,1756586720700,10000.01,0.00017,2]
[382359998,1756586720723,4696.66561,0.00017,2]
[382361925,1756586886393,-302.24477634,0.00017912,2]
[382361970,1756586889983,-151.0,0.00017912,2]
[382362009,1756586893211,-203.39422408,0.00017912,2]
[382362054,1756586896635,-404.90157682,0.00017912,2]
[382362086,1756586899598,-406.36314051,0.00017912,2]
[382362130,1756586903101,-367.42895376,0.00017733,2]
[382362154,1756586904936,-174.95976362,0.00017733,2]
[382362198,1756586908595,-228.55692904,0.00017733,2]
[382362255,1756586912929,-296.4841944,0.00017733,2]
[382362292,1756586915834,-186.41366048,0.00017733,2]
[382362310,1756586917597,-173.85213461,0.00017733,2]
[382362335,1756586919693,-271.86637142,0.00017733,2]
[382362365,1756586922421,-289.54019587,0.00017733,2]
[382362398,1756586925861,-225.67272249,0.00017733,2]
[382362414,1756586927629,-250.45980413,0.00017733,2]
[382362465,1756586931602,-213.78875579,0.00017733,2]
[382362487,1756586933211,-241.19932229,0.00017733,2]
[382362510,1756586934902,-384.35830727,0.00017733,2]
[382362553,1756586938455,-152.50946757,0.00017733,2]
[382362600,1756586942312,-152.30331985,0.00017733,2]
[382362627,1756586944707,-239.28286799,0.00017733,2]
[382362645,1756586946133,-192.045509,0.00017733,2]
[382362695,1756586949985,-194.10088652,0.00017733,2]
[382362726,1756586952627,-380.33926903,0.00017733,2]
[382362793,1756586958043,-292.54636837,0.00017733,2]
[382362794,1756586959565,-92.2911965,0.00017733,2]
[382362795,1756586959590,-364.56674421,0.00017912,2]
[382362796,1756586964545,-169.26903636,0.00017912,2]
[382362833,1756586968539,-211.79374969,0.00017733,2]
[382362896,1756586973536,-218.72168739,0.00017733,2]
[382362941,1756586977351,-255.07008259,0.00017733,2]
[382363010,1756586982822,-324.84347838,0.00017733,2]
[382363048,1756586986112,-168.60608282,0.00017733,2]
[382363071,1756586987885,-161.48883767,0.00017733,2]
[382363100,1756586990184,-172.3145046,0.00017733,2]
[382363124,1756586991971,-207.0582772,0.00017733,2]
[382363166,1756586995660,-167.3945075,0.00017733,2]
[382363201,1756586998462,-167.40560726,0.00017733,2]
[382363227,1756587000578,-317.41944096,0.00017733,2]
[382363273,1756587004758,-173.58055904,0.00017556,2]
[382363293,1756587006381,-198.1046306,0.00017556,2]
[382363331,1756587009688,-426.91353348,0.00017556,2]
[382363377,1756587013931,-154.04521089,0.00017556,2]
[382363402,1756587016087,-154.0452109,0.00017556,2]
[382363446,1756587019859,-154.49101714,0.00017556,2]
[382363463,1756587021428,-175.01015931,0.00017556,2]
[382363498,1756587024459,-283.87538416,0.00017556,2]
[382363539,1756587027979,-151.70607044,0.00017556,2]
[382363570,1756587030838,-151.0,0.00017556,2]
[382363603,1756587032347,-74.51057722,0.00017556,2]
[382363604,1756587032356,-2627.88374394,0.00017733,2]
[382363605,1756587032366,-2998.26050168,0.00017912,2]
[382363606,1756587032377,-1200.0,0.00018092,2]
[382363608,1756587032387,-281.0,0.00018276,2]
[382363609,1756587032396,-183.51227797,0.00018376,2]
[382363610,1756587032406,-281.0,0.00018476,2]
[382363611,1756587032416,-10.88563399,0.00018565,2]
[382363612,1756587032426,-168.0,0.00018715,2]
[382363614,1756587032436,-282.0,0.00018877,2]
[382363615,1756587032445,-663.10861565,0.00018905,2]
[382363616,1756587032457,-300.0,0.00018979,2]
[382363617,1756587032468,-532.02252154,0.00018981,2]
[382363619,1756587032478,-46649.1194012,0.00018981,2]
[382363620,1756587032488,-11361.55901651,0.00019006,2]
[382363621,1756587032498,-160.0,0.00019008,2]
[382363622,1756587032507,-160.0,0.00019008,2]
[382363623,1756587032517,-160.0,0.00019008,2]
[382363624,1756587032529,-160.0,0.00019008,2]
[382363625,1756587032539,-417.15472785,0.00019008,2]
[382363626,1756587032548,-160.0,0.00019008,2]
[382363627,1756587032557,-160.0,0.00019043,2]
[382363629,1756587032566,-529.89603018,0.00019043,2]
[382363630,1756587032575,-425.65682239,0.00019043,2]
[382363631,1756587032584,-216.25802849,0.00019043,2]
[382363632,1756587032593,-160.0,0.00019043,2]
[382363633,1756587032603,-217.34977173,0.00019043,2]
[382363634,1756587032613,-845.75060209,0.00019057,2]
[382363635,1756587032623,-232.73020027,0.00019057,2]
[382363636,1756587032633,-160.0,0.00019057,2]
[382363637,1756587032643,-456.86,0.00019058,3]
[382363639,1756587032653,-489.60473379,0.00019066,2]
[382363640,1756587032662,-500.0,0.00019066,2]
[382363641,1756587032671,-500.0,0.00019066,2]
[382363642,1756587032681,-500.0,0.00019066,2]
[382363643,1756587032690,-500.0,0.00019066,2]
[382363644,1756587032700,-200.0,0.00019066,2]
[382363645,1756587032710,-388.53519806,0.00019066,2]
[382363646,1756587032721,-500.0,0.00019067,2]
[382363647,1756587032731,-40000.04,0.00019068,2]
[382363649,1756587032741,-637.17,0.00019068,3]
[382363650,1756587032752,-1620.61984677,0.00019078,2]
[382363651,1756587032761,-200.0,0.000191,2]
[382363652,1756587032771,-335.6024457,0.000191,2]
[382363653,1756587032779,-457.2855818,0.000191,2]
[382363654,1756587032789,-200.0,0.000191,3]
[382363655,1756587032799,-792.3908312,0.000191,2]
[382363656,1756587032810,-153.0,0.000191,2]
[382363657,1756587032820,-322.3722724,0.000191,2]
[382363659,1756587032830,-1620.61984676,0.00019147,2]
[382363660,1756587032840,-874.17369509,0.00019149,2]
[382363661,1756587032849,-344.6,0.00019168,3]
[382363662,1756587032858,-572.20642981,0.00019173,2]
[382363663,1756587032867,-500.0,0.00019173,2]
[382363664,1756587032876,-500.0,0.00019173,2]
[382363665,1756587032886,-500.0,0.00019173,2]
[382363666,1756587032895,-508.37334711,0.00019173,2]
[382363667,1756587032905,-500.0,0.00019173,2]
[382363669,1756587032915,-500.0,0.00019173,2]
[382363670,1756587032924,-500.0,0.00019173,2]
[382363671,1756587032934,-646.24329734,0.00019173,2]
[382363673,1756587032943,-500.0,0.00019173,2]
[382363675,1756587032952,-500.0,0.00019173,2]
[382363676,1756587032962,-445.33881029,0.00019173,2]
[382363677,1756587032971,-500.0,0.00019173,2]
[382363678,1756587032980,-500.0,0.00019173,2]
[382363679,1756587032990,-500.0,0.00019173,2]
[382363681,1756587032999,-638.1397688,0.00019173,2]
[382363682,1756587033009,-500.0,0.00019173,2]
[382363683,1756587033019,-500.0,0.00019173,2]
[382363684,1756587033033,-500.0,0.00019173,2]
[382363685,1756587033043,-291.09048286,0.00019173,2]
[382363686,1756587033051,-500.0,0.00019173,2]
[382363687,1756587033059,-500.0,0.00019173,2]
[382363688,1756587033069,-263.50775466,0.00019173,2]
[382363689,1756587033079,-500.0,0.00019173,2]
[382363691,1756587033088,-500.0,0.00019173,2]
[382363692,1756587033098,-500.0,0.00019173,2]
[382363693,1756587033107,-500.0,0.00019173,2]
[382363694,1756587033116,-500.0,0.00019173,2]
[382363695,1756587033126,-480.0,0.00019178,2]
[382363696,1756587033135,-480.0,0.00019178,2]
[382363697,1756587033144,-500.0,0.00019178,2]
[382363698,1756587033154,-480.0,0.00019178,2]
[382363699,1756587033164,-347.65001823,0.00019178,2]
[382363700,1756587033175,-209.77125205,0.00019178,2]
[382363702,1756587033185,-480.0,0.00019178,2]
[382363703,1756587033195,-480.0,0.00019178,2]
[382363704,1756587033204,-480.0,0.00019178,2]
[382363705,1756587033213,-480.0,0.00019178,2]
[382363706,1756587033223,-151.0,0.00019178,2]
[382363707,1756587033233,-151.0,0.00019178,2]
[382363708,1756587033243,-480.0,0.00019178,2]
[382363709,1756587033253,-480.0,0.00019178,2]
[382363710,1756587033263,-896.31,0.00019178,2]
[382363712,1756587033272,-480.0,0.00019178,2]
[382363713,1756587033282,-565.39429205,0.00019178,2]
[382363714,1756587033291,-480.0,0.00019178,2]
[382363715,1756587033301,-496.45,0.00019178,2]
[382363716,1756587033311,-480.0,0.00019178,2]
[382363717,1756587033321,-676.38,0.00019178,2]
[382363718,1756587033330,-480.0,0.00019178,2]
[382363719,1756587033340,-480.0,0.00019178,2]
[382363720,1756587033349,-480.0,0.00019178,2]
[382363721,1756587033359,-480.0,0.00019178,2]
[382363723,1756587033369,-480.0,0.00019178,2]
[382363724,1756587033379,-1173.95,0.00019178,2]
[382363725,1756587033389,-299.49832394,0.00019178,2]
[382363726,1756587033399,-734.2,0.00019178,2]
[382363727,1756587033409,-480.0,0.00019178,2]
[382363728,1756587033419,-480.0,0.00019178,2]
[382363729,1756587033429,-250.28666959,0.00019178,2]
[382363730,1756587033439,-480.0,0.00019178,2]
[382363731,1756587033449,-579.73,0.00019178,2]
[382363733,1756587033459,-480.0,0.00019178,2]
[382363734,1756587033469,-1697.37,0.00019178,2]
[382363735,1756587033479,-480.0,0.00019178,2]
[382363736,1756587033489,-480.0,0.00019178,2]
[382363737,1756587033499,-586.71,0.00019178,2]
[382363738,1756587033509,-593.84,0.00019178,2]
[382363739,1756587033518,-480.0,0.00019178,2]
[382363740,1756587033528,-480.0,0.00019178,2]
[382363741,1756587033538,-480.0,0.00019178,2]
[382363743,1756587033548,-853.19,0.00019178,2]
[382363744,1756587033557,-480.0,0.00019178,2]
[382363745,1756587033567,-480.0,0.00019178,2]
[382363746,1756587033577,-549.0,0.00019178,2]
[382363747,1756587033587,-480.0,0.00019178,2]
[382363748,1756587033597,-801.21,0.00019178,2]
[382363749,1756587033606,-480.0,0.00019178,2]
[382363750,1756587033616,-480.0,0.00019178,2]
[382363751,1756587033626,-480.0,0.00019178,2]
[382363752,1756587033636,-480.0,0.00019178,2]
[382363754,1756587033647,-480.0,0.00019178,2]
[382363755,1756587033656,-480.0,0.00019178,2]
[382363756,1756587033666,-480.0,0.00019178,2]
[382363757,1756587033677,-480.0,0.00019178,2]
[382363758,1756587033687,-480.0,0.00019178,2]
[382363759,1756587033696,-480.0,0.00019178,2]
[382363760,1756587033706,-480.0,0.00019178,2]
[382363761,1756587033715,-480.0,0.00019178,2]
[382363762,1756587033725,-405.54603907,0.00019178,2]
[382363764,1756587033734,-151.0,0.00019178,2]
[382363765,1756587033744,-480.0,0.00019178,2]
[382363766,1756587033754,-594.26,0.00019178,2]
[382363767,1756587033763,-480.0,0.00019178,2]
[382363768,1756587033773,-1705.52,0.00019178,2]
[382363769,1756587033782,-480.0,0.00019178,2]
[382363770,1756587033792,-246.21616653,0.00019178,2]
[382363771,1756587033802,-366.59151439,0.00019178,2]
[382363772,1756587033811,-721.37,0.00019178,2]
[382363774,1756587033821,-480.0,0.00019178,2]
[382363775,1756587033831,-638.21,0.00019178,2]
[382363776,1756587033840,-480.0,0.00019178,2]
[382363777,1756587033850,-480.0,0.00019178,2]
[382363778,1756587033859,-480.0,0.00019178,2]
[382363779,1756587033869,-480.0,0.00019178,2]
[382363780,1756587033879,-151.0,0.00019178,2]
[382363781,1756587033890,-151.0,0.00019178,2]
[382363782,1756587033900,-680.38,0.00019178,2]
[382363784,1756587033910,-151.0,0.00019178,2]
[382363785,1756587033921,-480.0,0.00019178,2]
[382363786,1756587033934,-480.0,0.00019178,2]
[382363787,1756587033944,-480.0,0.00019178,2]
[382363788,1756587033954,-480.0,0.00019178,2]
[382363789,1756587033964,-1083.74,0.00019178,2]
[382363790,1756587033974,-541.66,0.00019178,2]
[382363791,1756587033984,-480.0,0.00019178,2]
[382363792,1756587033994,-199.73322191,0.00019178,2]
[382363794,1756587034004,-480.0,0.00019178,2]
[382363795,1756587034013,-151.000001,0.00019178,2]
[382363796,1756587034025,-491.26,0.00019178,2]
[382363797,1756587034036,-1325.79,0.00019178,2]
[382363798,1756587034046,-1005.91,0.00019178,2]
[382363799,1756587034055,-1406.97,0.00019178,2]
[382363800,1756587034065,-151.0,0.00019178,2]
[382363801,1756587034075,-151.0,0.00019178,2]
[382363803,1756587034085,-480.0,0.00019178,2]
[382363804,1756587034095,-151.0,0.00019178,2]
[382363805,1756587034104,-480.0,0.00019178,2]
[382363806,1756587034114,-151.0,0.00019178,2]
[382363807,1756587034124,-151.0,0.00019178,2]
[382363808,1756587034134,-151.0,0.00019178,2]
[382363809,1756587034143,-151.0,0.00019178,2]
[382363810,1756587034153,-151.0,0.00019178,2]
[382363811,1756587034163,-151.0,0.00019178,2]
[382363812,1756587034172,-151.0,0.00019178,2]
[382363814,1756587034182,-151.0,0.00019178,2]
[382363815,1756587034192,-151.0,0.00019178,2]
[382363816,1756587034203,-151.0,0.00019178,2]
[382363817,1756587034212,-480.0,0.00019178,2]
[382363818,1756587034222,-151.0,0.00019178,2]
[382363819,1756587034232,-151.0,0.00019178,2]
[382363820,1756587034242,-480.0,0.00019178,2]
[382363821,1756587034252,-151.0,0.00019178,2]
[382363822,1756587034262,-151.0,0.00019178,2]
[382363824,1756587034271,-151.0,0.00019178,2]
[382363825,1756587034282,-204.088312,0.00019178,2]
[382363826,1756587034292,-910.05,0.00019178,2]
[382363827,1756587034302,-511.39086658,0.00019178,2]
[382363828,1756587034312,-480.0,0.00019178,2]
[382363829,1756587034322,-803.47,0.00019178,2]
[382363830,1756587034332,-480.0,0.00019178,2]
[382363831,1756587034341,-480.0,0.00019178,2]
[382363832,1756587034351,-1325.63,0.00019178,2]
[382363834,1756587034361,-465.09751842,0.00019178,2]
[382363835,1756587034371,-650.31,0.00019178,2]
[382363836,1756587034380,-480.0,0.00019178,2]
[382363837,1756587034390,-480.0,0.00019178,2]
[382363838,1756587034400,-480.0,0.00019178,2]
[382363839,1756587034410,-1723.05,0.00019178,2]
[382363840,1756587034421,-151.0,0.00019178,2]
[382363841,1756587034430,-151.0,0.00019178,2]
[382363842,1756587034441,-183.8074,0.00019178,2]
[382363844,1756587034450,-151.0,0.00019178,2]
[382363845,1756587034460,-480.0,0.00019178,2]
[382363846,1756587034470,-480.0,0.00019178,2]
[382363847,1756587034480,-503.59065188,0.00019178,2]
[382363848,1756587034489,-1806.29,0.00019178,2]
[382363849,1756587034499,-480.0,0.00019178,2]
[382363850,1756587034508,-169.37852413,0.00019178,2]
[382363851,1756587034518,-1415.55,0.00019178,2]
[382363852,1756587034528,-480.0,0.00019178,2]
[382363854,1756587034537,-1799.98,0.00019178,2]
[382363855,1756587034548,-744.34,0.00019178,2]
[382363856,1756587034557,-480.0,0.00019178,2]
[382363857,1756587034567,-480.0,0.00019178,2]
[382363858,1756587034576,-151.0,0.00019178,2]
[382363859,1756587034586,-480.0,0.00019178,2]
[382363860,1756587034604,-480.0,0.00019178,2]
[382363861,1756587034614,-480.0,0.00019178,2]
[382363863,1756587034623,-884.97,0.00019178,2]
[382363864,1756587034633,-287.98637077,0.00019178,2]
[382363865,1756587034642,-480.0,0.00019178,2]
[382363866,1756587034652,-1664.32,0.00019178,2]
[382363867,1756587034661,-480.0,0.00019178,2]
[382363868,1756587034672,-480.0,0.00019178,2]
[382363869,1756587034681,-480.0,0.00019178,2]
[382363870,1756587034691,-480.0,0.00019178,2]
[382363871,1756587034700,-480.0,0.00019178,2]
[382363873,1756587034710,-885.58,0.00019178,2]
[382363874,1756587034720,-525.56,0.00019178,2]
[382363875,1756587034730,-480.0,0.00019178,2]
[382363876,1756587034739,-1012.24,0.00019178,2]
[382363877,1756587034749,-525.36,0.00019178,2]
[382363878,1756587034759,-480.0,0.00019178,2]
[382363879,1756587034769,-480.0,0.00019178,2]
[382363880,1756587034779,-480.0,0.00019178,2]
[382363881,1756587034790,-151.0,0.00019178,2]
[382363883,1756587034801,-301.996717,0.00019178,2]
[382363884,1756587034811,-622.3,0.00019178,2]
[382363885,1756587034820,-480.0,0.00019178,2]
[382363886,1756587034830,-480.0,0.00019178,2]
[382363887,1756587034842,-500.0,0.00019178,2]
[382363888,1756587034852,-480.0,0.00019178,2]
[382363889,1756587034862,-1069.74,0.00019178,2]
[382363890,1756587034871,-480.0,0.00019178,2]